[Event "Open Nuevo Centro. Jornada 2"]
[Site "Chess.com"]
[Date "2020.06.26"]
[Round "5"]
[White "Kovacevic, Slobodan"]
[Black "Gómez Alonso, Óscar"]
[Result "1-0"]
[WhiteElo "2112"]
[BlackElo "1862"]
[TimeControl "180+2"]
[EndTime "11:26:50 PDT"]
[Termination "Victoria de nikko110 por abandono"]

1. d4 {[%clk 0:03:01.9]} 1... Nf6 {[%clk 0:03:00.2]} 2. Nf3 {[%clk 0:03:00.3]}
2... d5 {[%clk 0:02:59.6]} 3. Bf4 {[%clk 0:02:59.3]} 3... c5 {[%clk 0:03:00.6]}
4. e3 {[%clk 0:02:58.5]} 4... Bf5 {[%clk 0:03:00.6]} 5. c3 {[%clk 0:02:56.7]}
5... Qb6 {[%clk 0:03:01]} 6. Qc1 {[%clk 0:02:54.5]} 6... g6 {[%clk 0:03:00]} 7.
Nbd2 {[%clk 0:02:51.1]} 7... Bg7 {[%clk 0:02:59.3]} 8. Nh4 {[%clk 0:02:50.1]}
8... Bc8 {[%clk 0:02:56.9]} 9. Bd3 {[%clk 0:02:48.4]} 9... Nh5 {[%clk
0:02:54.9]} 10. Bg3 {[%clk 0:02:46.6]} 10... Nxg3 {[%clk 0:02:55.4]} 11. hxg3
{[%clk 0:02:45.5]} 11... cxd4 {[%clk 0:02:56.2]} 12. exd4 {[%clk 0:02:43.7]}
12... Nd7 {[%clk 0:02:47.2]} 13. f4 {[%clk 0:02:40]} 13... Nf6 {[%clk
0:02:47.1]} 14. Rb1 {[%clk 0:02:35.5]} 14... Bg4 {[%clk 0:02:29]} 15. Ndf3
{[%clk 0:02:28.1]} 15... Ne4 {[%clk 0:02:21.9]} 16. Bxe4 {[%clk 0:02:25.4]}
16... dxe4 {[%clk 0:02:22.8]} 17. Ne5 {[%clk 0:02:24.3]} 17... Bxe5 {[%clk
0:02:11.4]} 18. fxe5 {[%clk 0:02:17.7]} 18... Qb5 {[%clk 0:01:56.2]} 19. Qe3
{[%clk 0:02:14.3]} 19... Qd3 {[%clk 0:01:54.3]} 20. Qxd3 {[%clk 0:02:12.6]}
20... exd3 {[%clk 0:01:55.1]} 21. Kd2 {[%clk 0:02:12]} 21... Be2 {[%clk
0:01:52.8]} 22. Nf3 {[%clk 0:02:08]} 22... h5 {[%clk 0:01:47]} 23. Ne1 {[%clk
0:02:06.8]} 23... O-O-O {[%clk 0:01:40.4]} 24. Nxd3 {[%clk 0:02:05.5]} 24...
Bxd3 {[%clk 0:01:41.4]} 25. Kxd3 {[%clk 0:02:04.8]} 25... b5 {[%clk 0:01:36.8]}
26. Rbf1 {[%clk 0:02:03.1]} 26... Rhf8 {[%clk 0:01:37.4]} 27. Rf3 {[%clk
0:01:58.6]} 27... Kd7 {[%clk 0:01:37.9]} 28. Rhf1 {[%clk 0:01:56]} 28... Ke8
{[%clk 0:01:38.5]} 29. b3 {[%clk 0:01:50.7]} 29... Rc8 {[%clk 0:01:32.4]} 30. c4
{[%clk 0:01:49]} 30... bxc4+ {[%clk 0:01:33.3]} 31. bxc4 {[%clk 0:01:48.2]}
31... Rb8 {[%clk 0:01:34.9]} 32. R1f2 {[%clk 0:01:45.6]} 32... a5 {[%clk
0:01:27.2]} 33. Ke4 {[%clk 0:01:43]} 33... Rb4 {[%clk 0:01:27.5]} 34. Rb3 {[%clk
0:01:39]} 34... Kd7 {[%clk 0:01:07.7]} 35. Rxb4 {[%clk 0:01:38]} 35... axb4
{[%clk 0:01:08.6]} 36. d5 {[%clk 0:01:37]} 36... f5+ {[%clk 0:01:07.2]} 37. exf6
{[%clk 0:01:32.8]} 37... exf6 {[%clk 0:01:07.2]} 38. c5 {[%clk 0:01:31.2]} 38...
f5+ {[%clk 0:00:59.7]} 39. Kd4 {[%clk 0:01:29.8]} 39... Re8 {[%clk 0:00:59.9]}
40. Kc4 {[%clk 0:01:29.1]} 40... Re4+ {[%clk 0:01:00.8]} 41. Kb5 {[%clk
0:01:27.1]} 41... Rd4 {[%clk 0:00:55.3]} 42. d6 {[%clk 0:01:25.6]} 42... Rd5
{[%clk 0:00:38.8]} 43. Re2 {[%clk 0:01:21.9]} 43... g5 {[%clk 0:00:36.4]} 44.
Re7+ {[%clk 0:01:20.1]} 44... Kd8 {[%clk 0:00:37.4]} 45. Rg7 {[%clk 0:01:18.3]}
45... f4 {[%clk 0:00:36.7]} 46. gxf4 {[%clk 0:01:16.9]} 46... gxf4 {[%clk
0:00:37.1]} 47. Rf7 {[%clk 0:01:14]} 47... Rd4 {[%clk 0:00:34.9]} 48. Kc6 {[%clk
0:01:05.6]} 48... Ke8 {[%clk 0:00:35.6]} 49. Rf5 {[%clk 0:01:00.4]} 49... h4
{[%clk 0:00:35.8]} 50. Rh5 {[%clk 0:00:58.2]} 50... Rd2 {[%clk 0:00:33.7]} 51.
Rxh4 {[%clk 0:00:56.5]} 51... Rxa2 {[%clk 0:00:33.9]} 52. Rxf4 {[%clk
0:00:55.9]} 52... b3 {[%clk 0:00:34.8]} 53. Rb4 {[%clk 0:00:54.9]} 53... b2
{[%clk 0:00:31]} 54. g4 {[%clk 0:00:53.2]} 54... Ra6+ {[%clk 0:00:22.1]} 55. Kd5
{[%clk 0:00:51.3]} 55... Ra2 {[%clk 0:00:15.8]} 56. g5 {[%clk 0:00:49.5]} 56...
Kd7 {[%clk 0:00:11.4]} 57. c6+ {[%clk 0:00:46.1]} 57... Kc8 {[%clk 0:00:12.3]}
58. Ke6 {[%clk 0:00:43.9]} 58... Ra1 {[%clk 0:00:08.5]} 59. Rxb2 {[%clk
0:00:40.8]} 59... Re1+ {[%clk 0:00:10.4]} 60. Kd5 {[%clk 0:00:36.6]} 60... Rd1+
{[%clk 0:00:11.4]} 61. Kc5 {[%clk 0:00:35.9]} 61... Rc1+ {[%clk 0:00:12.4]} 62.
Kb6 {[%clk 0:00:35.2]} 62... Rg1 {[%clk 0:00:11.2]} 63. d7+ {[%clk 0:00:29.8]}
63... Kd8 {[%clk 0:00:11.5]} 64. Kb7 {[%clk 0:00:29.7]} 64... Rxg5 {[%clk
0:00:07.7]} 65. c7+ {[%clk 0:00:28.2]} 1

[Event "Open Nuevo Centro. Jornada 2"]
[Site "Chess.com"]
[Date "2020.06.26"]
[Round "5"]
[White "García Oviedo, Alejandro"]
[Black "Gimeno Higueras, Roberto"]
[Result "1-0"]
[WhiteElo "1869"]
[BlackElo "1970"]
[TimeControl "180+2"]
[EndTime "11:27:08 PDT"]
[Termination "Victoria de alexgarov por abandono"]

1. Nf3 {[%clk 0:03:01.6]} 1... Nf6 {[%clk 0:03:00.3]} 2. g3 {[%clk 0:02:55.5]}
2... b6 {[%clk 0:03:00.8]} 3. Bg2 {[%clk 0:02:57.4]} 3... Bb7 {[%clk 0:03:01]}
4. O-O {[%clk 0:02:58]} 4... g6 {[%clk 0:03:01.7]} 5. b3 {[%clk 0:02:59.4]} 5...
Bg7 {[%clk 0:03:02.7]} 6. Bb2 {[%clk 0:03:01.3]} 6... O-O {[%clk 0:03:03.8]} 7.
c4 {[%clk 0:03:02.5]} 7... d6 {[%clk 0:03:03.9]} 8. d4 {[%clk 0:03:03.6]} 8...
Nbd7 {[%clk 0:03:04.7]} 9. Nc3 {[%clk 0:03:04.2]} 9... Re8 {[%clk 0:03:05.3]}
10. Re1 {[%clk 0:02:51.6]} 10... Ne4 {[%clk 0:03:02.5]} 11. Nxe4 {[%clk
0:02:50.6]} 11... Bxe4 {[%clk 0:03:02.5]} 12. Qd2 {[%clk 0:02:52.3]} 12... e6
{[%clk 0:02:52.8]} 13. Qe3 {[%clk 0:02:47.2]} 13... Nf6 {[%clk 0:02:50.7]} 14.
g4 {[%clk 0:02:43.5]} 14... Bb7 {[%clk 0:02:40.8]} 15. h3 {[%clk 0:02:43.2]}
15... c5 {[%clk 0:02:38.3]} 16. Rad1 {[%clk 0:02:42]} 16... Qc7 {[%clk
0:02:35.6]} 17. Qf4 {[%clk 0:02:38.6]} 17... cxd4 {[%clk 0:02:10.7]} 18. Qxd4
{[%clk 0:02:29.3]} 18... Rad8 {[%clk 0:02:07.6]} 19. Rc1 {[%clk 0:01:54.2]}
19... Nh5 {[%clk 0:02:04.9]} 20. Qd2 {[%clk 0:01:53.8]} 20... Bxb2 {[%clk
0:02:05.2]} 21. Qxb2 {[%clk 0:01:55.7]} 21... Nf4 {[%clk 0:02:05.8]} 22. Bf1
{[%clk 0:01:53.8]} 22... e5 {[%clk 0:02:01.6]} 23. Nd2 {[%clk 0:01:48.8]} 23...
Qc6 {[%clk 0:01:58.8]} 24. Nf3 {[%clk 0:01:38]} 24... f5 {[%clk 0:01:40.7]} 25.
g5 {[%clk 0:01:33]} 25... Qe4 {[%clk 0:01:33.1]} 26. Qa3 {[%clk 0:01:25.2]}
26... a5 {[%clk 0:01:29.9]} 27. b4 {[%clk 0:01:22.6]} 27... Ne6 {[%clk
0:01:14.4]} 28. bxa5 {[%clk 0:01:23.3]} 28... Nxg5 {[%clk 0:00:58.3]} 29. Bg2
{[%clk 0:01:14.4]} 29... Qf4 {[%clk 0:00:40.5]} 30. Kh1 {[%clk 0:00:24.3]} 30...
Bxf3 {[%clk 0:00:39.6]} 31. exf3 {[%clk 0:00:25]} 31... bxa5 {[%clk 0:00:40]}
32. Rc3 {[%clk 0:00:22.4]} 32... Ne6 {[%clk 0:00:31.9]} 33. Qxa5 {[%clk
0:00:17.3]} 33... Qh4 {[%clk 0:00:32.2]} 34. Rf1 {[%clk 0:00:17.5]} 34... Nf4
{[%clk 0:00:31.6]} 35. Kh2 {[%clk 0:00:17.5]} 35... g5 {[%clk 0:00:28]} 36. Rb3
{[%clk 0:00:13.1]} 36... g4 {[%clk 0:00:28.5]} 37. fxg4 {[%clk 0:00:14.4]} 37...
fxg4 {[%clk 0:00:29.5]} 38. Qd2 {[%clk 0:00:13.6]} 38... Re6 {[%clk 0:00:26.9]}
39. Rg3 {[%clk 0:00:15]} 39... h5 {[%clk 0:00:21.7]} 40. Bd5 {[%clk 0:00:13.9]}
40... Nxd5 {[%clk 0:00:20.1]} 41. Qxd5 {[%clk 0:00:15.8]} 41... Kf7 {[%clk
0:00:20.9]} 42. Rb1 {[%clk 0:00:15.4]} 42... Rd7 {[%clk 0:00:19.9]} 43. Rb8
{[%clk 0:00:14.5]} 43... Qf6 {[%clk 0:00:19.6]} 44. Kg1 {[%clk 0:00:12.1]} 44...
Qf4 {[%clk 0:00:17.4]} 45. hxg4 {[%clk 0:00:12.7]} 45... hxg4 {[%clk 0:00:18.2]}
46. Qd3 {[%clk 0:00:12.3]} 46... e4 {[%clk 0:00:17.5]} 47. Qd4 {[%clk
0:00:12.9]} 47... Qf6 {[%clk 0:00:18.5]} 48. Qd1 {[%clk 0:00:13.4]} 48... e3
{[%clk 0:00:14.4]} 49. Rxe3 {[%clk 0:00:13.5]} 49... Rxe3 {[%clk 0:00:15.3]} 50.
fxe3 {[%clk 0:00:15.4]} 50... Qh4 {[%clk 0:00:14.3]} 51. Qd5+ {[%clk 0:00:15.3]}
51... Ke7 {[%clk 0:00:14.8]} 52. Qe4+ {[%clk 0:00:14.1]} 52... Kf7 {[%clk
0:00:14.7]} 53. Qf5+ {[%clk 0:00:14.6]} 53... Ke7 {[%clk 0:00:15.8]} 54. Qf8+
{[%clk 0:00:14.8]} 54... Ke6 {[%clk 0:00:17.1]} 55. Re8+ {[%clk 0:00:15.8]}
55... Re7 {[%clk 0:00:18.5]} 56. Rxe7+ {[%clk 0:00:12.3]} 56... Qxe7 {[%clk
0:00:19.6]} 57. Qxe7+ {[%clk 0:00:13.9]} 57... Kxe7 {[%clk 0:00:21.1]} 58. Kg2
{[%clk 0:00:15.8]} 58... Kd7 {[%clk 0:00:22.1]} 59. Kg3 {[%clk 0:00:17.1]} 59...
Kc6 {[%clk 0:00:23.8]} 60. Kxg4 {[%clk 0:00:18.9]} 60... Kc5 {[%clk 0:00:25.5]}
61. Kf4 {[%clk 0:00:20.7]} 61... Kxc4 {[%clk 0:00:27.2]} 62. Ke4 {[%clk
0:00:22.4]} 62... Kc5 {[%clk 0:00:28.5]} 63. Kd3 {[%clk 0:00:22.2]} 63... Kd5
{[%clk 0:00:29.9]} 64. a4 {[%clk 0:00:21.9]} 64... Kc5 {[%clk 0:00:31.2]} 65.
Ke4 {[%clk 0:00:22.7]} 65... Kb4 {[%clk 0:00:30.5]} 66. a5 {[%clk 0:00:24.3]}
66... Ka4 {[%clk 0:00:32.1]} 67. Kd5 {[%clk 0:00:26.1]} 67... Kxa5 {[%clk
0:00:33.1]} 68. Kxd6 {[%clk 0:00:27.5]} 68... Kb5 {[%clk 0:00:35]} 69. e4 {[%clk
0:00:29.1]} 69... Kc4 {[%clk 0:00:36.9]} 70. e5 {[%clk 0:00:30.8]} 1

[Event "Open Nuevo Centro. Jornada 2"]
[Site "Chess.com"]
[Date "2020.06.26"]
[Round "5"]
[White "Yeste Campos, Manuel"]
[Black "Mora Bort, Miguel Ángel"]
[Result "0-1"]
[WhiteElo "918"]
[BlackElo "1157"]
[TimeControl "180+2"]
[EndTime "11:27:14 PDT"]
[Termination "Victoria de miguelon41 por jaque mate"]

1. e4 {[%clk 0:03:01.9]} 1... e6 {[%clk 0:02:58.9]} 2. d4 {[%clk 0:03:00.2]}
2... d5 {[%clk 0:02:59.6]} 3. exd5 {[%clk 0:03:01]} 3... exd5 {[%clk 0:02:59.8]}
4. Nc3 {[%clk 0:03:02.5]} 4... Nf6 {[%clk 0:03:00.5]} 5. Nf3 {[%clk 0:03:01.4]}
5... Bd6 {[%clk 0:03:00.6]} 6. Be2 {[%clk 0:03:00.2]} 6... O-O {[%clk
0:03:00.6]} 7. O-O {[%clk 0:03:00.8]} 7... Bg4 {[%clk 0:03:01.1]} 8. h3 {[%clk
0:03:00.4]} 8... Bh5 {[%clk 0:03:00.9]} 9. Bg5 {[%clk 0:02:52.7]} 9... c6 {[%clk
0:02:58.8]} 10. Re1 {[%clk 0:02:47.1]} 10... Nbd7 {[%clk 0:02:59.3]} 11. Bd3
{[%clk 0:02:44.8]} 11... Qc7 {[%clk 0:02:56.2]} 12. Bxf6 {[%clk 0:02:33.8]}
12... Nxf6 {[%clk 0:02:55.7]} 13. Qe2 {[%clk 0:02:14]} 13... Rfe8 {[%clk
0:02:54.2]} 14. Qd1 {[%clk 0:02:05.1]} 14... Rxe1+ {[%clk 0:02:53.6]} 15. Qxe1
{[%clk 0:02:05.9]} 15... Re8 {[%clk 0:02:53]} 16. Qd2 {[%clk 0:02:03.3]} 16...
Bf4 {[%clk 0:02:52.3]} 17. Qd1 {[%clk 0:01:50.2]} 17... Ne4 {[%clk 0:02:40.8]}
18. Ne2 {[%clk 0:01:40.5]} 18... Bd6 {[%clk 0:02:34.2]} 19. Nd2 {[%clk
0:01:20.6]} 19... Nxd2 {[%clk 0:02:27.8]} 20. Qxd2 {[%clk 0:01:20.5]} 20... Bxe2
{[%clk 0:02:26.2]} 21. Re1 {[%clk 0:01:18.4]} 21... Bf4 {[%clk 0:01:52.9]} 22.
Rxe2 {[%clk 0:00:57.9]} 22... Rxe2 {[%clk 0:01:43.5]} 23. Qxe2 {[%clk
0:00:57.3]} 23... g6 {[%clk 0:01:33.2]} 24. g3 {[%clk 0:00:51.4]} 24... Bd6
{[%clk 0:01:30.1]} 25. Kg2 {[%clk 0:00:51]} 25... Qe7 {[%clk 0:01:29.5]} 26. Qg4
{[%clk 0:00:43.4]} 26... Qc7 {[%clk 0:01:18.9]} 27. c4 {[%clk 0:00:41.9]} 27...
h5 {[%clk 0:01:14.6]} 28. Qf3 {[%clk 0:00:40.3]} 28... Qe7 {[%clk 0:01:04.5]}
29. cxd5 {[%clk 0:00:32.3]} 29... cxd5 {[%clk 0:01:04.5]} 30. Qxd5 {[%clk
0:00:29.6]} 30... b6 {[%clk 0:01:03.3]} 31. Qa8+ {[%clk 0:00:27]} 31... Kg7
{[%clk 0:01:01.2]} 32. Qe4 {[%clk 0:00:21.3]} 32... Qxe4+ {[%clk 0:01:00]} 33.
Bxe4 {[%clk 0:00:22.3]} 33... Kf6 {[%clk 0:00:57.9]} 34. g4 {[%clk 0:00:23]}
34... hxg4 {[%clk 0:00:57.4]} 35. hxg4 {[%clk 0:00:23.7]} 35... Ke6 {[%clk
0:00:57.6]} 36. Kf3 {[%clk 0:00:22.4]} 36... f5 {[%clk 0:00:58.1]} 37. gxf5+
{[%clk 0:00:21.9]} 37... gxf5 {[%clk 0:00:58.9]} 38. Bd3 {[%clk 0:00:22.5]}
38... Kf6 {[%clk 0:00:57.6]} 39. Ke3 {[%clk 0:00:23.2]} 39... f4+ {[%clk
0:00:52.3]} 40. Kf3 {[%clk 0:00:22.4]} 40... Kg5 {[%clk 0:00:49.5]} 41. Ke4
{[%clk 0:00:21.4]} 41... Kh4 {[%clk 0:00:48.5]} 42. a3 {[%clk 0:00:20]} 42...
Kh3 {[%clk 0:00:48.9]} 43. f3 {[%clk 0:00:19.8]} 43... Kg3 {[%clk 0:00:47.1]}
44. b4 {[%clk 0:00:20.4]} 44... a5 {[%clk 0:00:43.1]} 45. bxa5 {[%clk
0:00:19.4]} 45... bxa5 {[%clk 0:00:43.8]} 46. a4 {[%clk 0:00:20.4]} 46... Bb4
{[%clk 0:00:40.8]} 47. d5 {[%clk 0:00:19.4]} 47... Bd6 {[%clk 0:00:40.5]} 48.
Bc4 {[%clk 0:00:20]} 48... Bc7 {[%clk 0:00:35.8]} 49. Be2 {[%clk 0:00:19.9]}
49... Bd6 {[%clk 0:00:36]} 50. Bd3 {[%clk 0:00:20.2]} 50... Kf2 {[%clk
0:00:33.5]} 51. Bc4 {[%clk 0:00:14.8]} 51... Ke1 {[%clk 0:00:30.4]} 52. Bd3
{[%clk 0:00:15.2]} 52... Kd2 {[%clk 0:00:30.8]} 53. Bc4 {[%clk 0:00:16]} 53...
Kc3 {[%clk 0:00:31.5]} 54. Bd3 {[%clk 0:00:16.4]} 54... Kb4 {[%clk 0:00:31.6]}
55. Be2 {[%clk 0:00:12.2]} 55... Kxa4 {[%clk 0:00:30.9]} 56. Bd1+ {[%clk
0:00:13.2]} 56... Kb4 {[%clk 0:00:29.8]} 57. Be2 {[%clk 0:00:13.3]} 57... a4
{[%clk 0:00:30.3]} 58. Bd1 {[%clk 0:00:14.1]} 58... a3 {[%clk 0:00:29.5]} 59.
Kd4 {[%clk 0:00:12.9]} 59... a2 {[%clk 0:00:27.8]} 60. Be2 {[%clk 0:00:11.9]}
60... a1=Q+ {[%clk 0:00:27.6]} 61. Kd3 {[%clk 0:00:11.8]} 61... Qe5 {[%clk
0:00:26.2]} 62. Kd2 {[%clk 0:00:11]} 62... Qxd5+ {[%clk 0:00:26.3]} 63. Ke1
{[%clk 0:00:11.4]} 63... Bc5 {[%clk 0:00:22.5]} 64. Kf1 {[%clk 0:00:11.5]} 64...
Qd4 {[%clk 0:00:22.8]} 65. Ke1 {[%clk 0:00:10.7]} 65... Qf2+ {[%clk 0:00:22.6]}
66. Kd1 {[%clk 0:00:11.4]} 66... Kc3 {[%clk 0:00:22.8]} 67. Kc1 {[%clk 0:00:11]}
67... Qxe2 {[%clk 0:00:21.6]} 68. Kb1 {[%clk 0:00:10.9]} 68... Kb3 {[%clk
0:00:21]} 69. Kc1 {[%clk 0:00:11.1]} 69... Qc2# {[%clk 0:00:21.2]} 0

[Event "Open Nuevo Centro. Jornada 2"]
[Site "Chess.com"]
[Date "2020.06.26"]
[Round "5"]
[White "Rabbani Perez, Oumaima "]
[Black "Martínez Cuenca, Adrián "]
[Result "0-1"]
[WhiteElo "666"]
[BlackElo "625"]
[TimeControl "180+2"]
[EndTime "11:27:37 PDT"]
[Termination "Victoria de AdrianM12 por jaque mate"]

1. e3 {[%clk 0:03:01.9]} 1... e5 {[%clk 0:02:59]} 2. Bd3 {[%clk 0:03:00.3]} 2...
Qg5 {[%clk 0:02:49.4]} 3. Qf3 {[%clk 0:02:58.7]} 3... Nf6 {[%clk 0:02:42.2]} 4.
Nh3 {[%clk 0:02:56.8]} 4... g6 {[%clk 0:02:40]} 5. Nxg5 {[%clk 0:02:56.8]} 5...
h6 {[%clk 0:02:33.6]} 6. Nh3 {[%clk 0:02:52.6]} 6... Nd5 {[%clk 0:02:23.3]} 7.
Qxd5 {[%clk 0:02:50.9]} 7... c6 {[%clk 0:02:20.1]} 8. Qe4 {[%clk 0:02:50]} 8...
d5 {[%clk 0:02:19.8]} 9. Qxe5+ {[%clk 0:02:50.3]} 9... Be7 {[%clk 0:02:14.9]}
10. Nf4 {[%clk 0:02:44.6]} 10... g5 {[%clk 0:02:13.9]} 11. Ng6 {[%clk
0:02:44.9]} 11... fxg6 {[%clk 0:02:13.3]} 12. Qxh8+ {[%clk 0:02:43.9]} 12... Bf8
{[%clk 0:02:12.2]} 13. Bxg6+ {[%clk 0:02:41.7]} 13... Ke7 {[%clk 0:02:06.5]} 14.
Qe5+ {[%clk 0:02:37.5]} 14... Kd7 {[%clk 0:02:04.9]} 15. Bf5+ {[%clk 0:02:37]}
15... Kd8 {[%clk 0:02:03.4]} 16. Qf6+ {[%clk 0:02:26.4]} 16... Ke8 {[%clk
0:02:03]} 17. Bxc8 {[%clk 0:02:25.4]} 17... Na6 {[%clk 0:01:59.9]} 18. Qd6
{[%clk 0:02:24.1]} 18... Rxc8 {[%clk 0:01:59.2]} 19. Qc7 {[%clk 0:02:22.7]}
19... Rxc7 {[%clk 0:01:57.7]} 20. b3 {[%clk 0:02:17.4]} 20... Nb4 {[%clk
0:01:37.4]} 21. Na3 {[%clk 0:02:09.6]} 21... Na6 {[%clk 0:01:34.8]} 22. Bb2
{[%clk 0:02:08.1]} 22... Nb4 {[%clk 0:01:22.4]} 23. h4 {[%clk 0:02:07.1]} 23...
c5 {[%clk 0:01:22.9]} 24. hxg5 {[%clk 0:02:06.7]} 24... c4 {[%clk 0:01:22.6]}
25. bxc4 {[%clk 0:02:06.4]} 25... Nxc2+ {[%clk 0:01:20.4]} 26. Kd1 {[%clk
0:02:05.5]} 26... Nxa1 {[%clk 0:01:20.2]} 27. Bxa1 {[%clk 0:02:05.7]} 27... dxc4
{[%clk 0:01:17.8]} 28. Rh4 {[%clk 0:02:01.2]} 28... c3 {[%clk 0:01:17.3]} 29.
dxc3 {[%clk 0:01:58]} 29... Rxc3 {[%clk 0:01:17.2]} 30. Bxc3 {[%clk 0:01:57.5]}
30... hxg5 {[%clk 0:01:06.4]} 31. Rh7 {[%clk 0:01:53.9]} 31... Bxa3 {[%clk
0:01:04.4]} 32. e4 {[%clk 0:01:48.8]} 32... Bc5 {[%clk 0:00:56.8]} 33. f3 {[%clk
0:01:46]} 33... Bd6 {[%clk 0:00:52]} 34. Rg7 {[%clk 0:01:42.1]} 34... Kf8 {[%clk
0:00:51.5]} 35. Rxg5 {[%clk 0:01:41.7]} 35... Kf7 {[%clk 0:00:50.3]} 36. Rf5+
{[%clk 0:01:38.8]} 36... Kg6 {[%clk 0:00:40.7]} 37. Bf6 {[%clk 0:01:30.2]} 37...
b5 {[%clk 0:00:27.8]} 38. Rxb5 {[%clk 0:01:26.4]} 38... a6 {[%clk 0:00:27]} 39.
Rb6 {[%clk 0:01:25.2]} 39... a5 {[%clk 0:00:27.4]} 40. f4 {[%clk 0:01:18.3]}
40... a4 {[%clk 0:00:27]} 41. f5+ {[%clk 0:01:18.2]} 41... Kh5 {[%clk
0:00:23.5]} 42. e5 {[%clk 0:01:14.6]} 42... Bxe5 {[%clk 0:00:22.8]} 43. Bg7
{[%clk 0:01:12.1]} 43... Bxg7 {[%clk 0:00:22.8]} 44. f6 {[%clk 0:01:07.8]} 44...
Bxf6 {[%clk 0:00:21.1]} 45. Rb5+ {[%clk 0:01:07.5]} 45... Bg5 {[%clk 0:00:20]}
46. Rb2 {[%clk 0:01:04.9]} 46... Bf6 {[%clk 0:00:12.5]} 47. g3 {[%clk 0:01:04]}
47... Bxb2 {[%clk 0:00:11.4]} 48. g4+ {[%clk 0:00:59.2]} 48... Kxg4 {[%clk
0:00:11.5]} 49. Kc2 {[%clk 0:00:53.3]} 49... Bf6 {[%clk 0:00:06.2]} 50. Kd3
{[%clk 0:00:50.6]} 50... Be7 {[%clk 0:00:03.7]} 51. Kc4 {[%clk 0:00:49.9]} 51...
Kf3 {[%clk 0:00:03.3]} 52. Kb5 {[%clk 0:00:49.8]} 52... a3 {[%clk 0:00:03.5]}
53. Ka4 {[%clk 0:00:49.6]} 53... Ke2 {[%clk 0:00:04.8]} 54. Kb3 {[%clk
0:00:47.8]} 54... Kd2 {[%clk 0:00:05.8]} 55. Kc4 {[%clk 0:00:46.1]} 55... Kc2
{[%clk 0:00:06.5]} 56. Kd5 {[%clk 0:00:45.5]} 56... Kb2 {[%clk 0:00:07.1]} 57.
Kc4 {[%clk 0:00:44.9]} 57... Kxa2 {[%clk 0:00:07.7]} 58. Kc3 {[%clk 0:00:44.3]}
58... Bd6 {[%clk 0:00:07.9]} 59. Kc2 {[%clk 0:00:44.5]} 59... Ka1 {[%clk
0:00:08.5]} 60. Kc1 {[%clk 0:00:44.2]} 60... Be5 {[%clk 0:00:08.1]} 61. Kc2
{[%clk 0:00:43.4]} 61... Bf4 {[%clk 0:00:05.2]} 62. Kb3 {[%clk 0:00:42.7]} 62...
a2 {[%clk 0:00:04.9]} 63. Ka3 {[%clk 0:00:42.8]} 63... Kb1 {[%clk 0:00:04.4]}
64. Kb3 {[%clk 0:00:40.3]} 64... a1=Q {[%clk 0:00:04.9]} 65. Kc4 {[%clk
0:00:38.9]} 65... Qb2 {[%clk 0:00:05.4]} 66. Kc5 {[%clk 0:00:38.5]} 66... Qa3+
{[%clk 0:00:05.7]} 67. Kc6 {[%clk 0:00:36.2]} 67... Qa5 {[%clk 0:00:05.8]} 68.
Kd7 {[%clk 0:00:35.1]} 68... Qb6 {[%clk 0:00:05.8]} 69. Ke8 {[%clk 0:00:34.5]}
69... Qc7 {[%clk 0:00:06.4]} 70. Kf8 {[%clk 0:00:34.6]} 70... Qd7 {[%clk
0:00:07.3]} 71. Kg8 {[%clk 0:00:35.2]} 71... Qe7 {[%clk 0:00:08.3]} 72. Kh8
{[%clk 0:00:35.4]} 72... Kc2 {[%clk 0:00:10.2]} 73. Kg8 {[%clk 0:00:35]} 73...
Kd3 {[%clk 0:00:12.1]} 74. Kh8 {[%clk 0:00:35]} 74... Ke4 {[%clk 0:00:14]} 75.
Kg8 {[%clk 0:00:35.1]} 75... Kf5 {[%clk 0:00:15.9]} 76. Kh8 {[%clk 0:00:35.1]}
76... Kg6 {[%clk 0:00:17.8]} 77. Kg8 {[%clk 0:00:35.3]} 77... Qg7# {[%clk
0:00:19.7]} 0

[Event "Open Nuevo Centro. Jornada 2"]
[Site "Chess.com"]
[Date "2020.06.26"]
[Round "6"]
[White "Pardo Ruiz, Carlos"]
[Black "Amorós Pérez, Manuel David"]
[Result "1-0"]
[WhiteElo "1859"]
[BlackElo "1637"]
[TimeControl "180+2"]
[EndTime "11:29:51 PDT"]
[Termination "Victoria de Carlitoscarlsen por jaque mate"]

1. e4 {[%clk 0:03:01.9]} 1... d5 {[%clk 0:03:00.2]} 2. exd5 {[%clk 0:03:02.2]}
2... Qxd5 {[%clk 0:03:00.9]} 3. Nc3 {[%clk 0:03:03.7]} 3... Qd8 {[%clk
0:03:01.8]} 4. d4 {[%clk 0:03:04.5]} 4... Bf5 {[%clk 0:03:01.4]} 5. Nf3 {[%clk
0:03:04.4]} 5... e6 {[%clk 0:03:02.2]} 6. Bc4 {[%clk 0:03:04.2]} 6... c6 {[%clk
0:03:03]} 7. Bf4 {[%clk 0:03:04.6]} 7... Bd6 {[%clk 0:03:03.3]} 8. Bxd6 {[%clk
0:03:04.8]} 8... Qxd6 {[%clk 0:03:04]} 9. O-O {[%clk 0:03:06.2]} 9... Nf6 {[%clk
0:03:04.7]} 10. Ne5 {[%clk 0:03:03]} 10... O-O {[%clk 0:03:02.4]} 11. Ne2 {[%clk
0:02:58.5]} 11... Nbd7 {[%clk 0:03:02.3]} 12. Nxd7 {[%clk 0:02:55]} 12... Nxd7
{[%clk 0:03:00.4]} 13. c3 {[%clk 0:02:52.3]} 13... Nb6 {[%clk 0:02:57.1]} 14.
Bb3 {[%clk 0:02:52.3]} 14... Rad8 {[%clk 0:02:55.8]} 15. Ng3 {[%clk 0:02:50.6]}
15... Bg6 {[%clk 0:02:56.4]} 16. Qf3 {[%clk 0:02:44.5]} 16... a5 {[%clk
0:02:47.4]} 17. Ne4 {[%clk 0:02:42.1]} 17... Bxe4 {[%clk 0:02:47]} 18. Qxe4
{[%clk 0:02:44]} 18... a4 {[%clk 0:02:48.2]} 19. Bc2 {[%clk 0:02:44.2]} 19...
Nc4 {[%clk 0:02:47.4]} 20. Qxh7# {[%clk 0:02:44.4]} 1

[Event "Open Nuevo Centro. Jornada 2"]
[Site "Chess.com"]
[Date "2020.06.26"]
[Round "6"]
[White "Colomer Martinez, Isabel"]
[Black "Valero Martinez, Óscar"]
[Result "0-1"]
[WhiteElo "1214"]
[BlackElo "1201"]
[TimeControl "180+2"]
[EndTime "11:29:55 PDT"]
[Termination "Victoria de Oscar12000 por jaque mate"]

1. d4 {[%clk 0:03:01.9]} 1... d5 {[%clk 0:03:00.7]} 2. c4 {[%clk 0:03:02.4]}
2... Nf6 {[%clk 0:02:59.3]} 3. Nc3 {[%clk 0:03:00.8]} 3... Nc6 {[%clk
0:02:59.2]} 4. Nf3 {[%clk 0:02:58.8]} 4... Bg4 {[%clk 0:02:54.9]} 5. Ne5 {[%clk
0:02:55.2]} 5... Nxe5 {[%clk 0:02:42.3]} 6. dxe5 {[%clk 0:02:55.2]} 6... Ne4
{[%clk 0:02:40.1]} 7. Nxd5 {[%clk 0:02:50]} 7... e6 {[%clk 0:02:34.9]} 8. Ne3
{[%clk 0:02:43]} 8... Bb4+ {[%clk 0:02:34.6]} 9. Bd2 {[%clk 0:02:34.9]} 9...
Bxd2+ {[%clk 0:02:34.1]} 10. Qxd2 {[%clk 0:02:14.9]} 10... Qxd2# {[%clk
0:02:35.2]} 0